fUSD/lending_fUSD_20260318
["ID","MTS","AMOUNT","RATE_DAILY","PERIOD"]
[408529198,1773837032454,-250.0,0.00016628,2]
[408529199,1773837032463,-250.0,0.00016628,2]
[408529200,1773837032473,-250.0,0.00016628,2]
[408529201,1773837032482,-250.0,0.00016628,2]
[408529202,1773837032491,-250.0,0.00016628,2]
[408529203,1773837032501,-334.73758888,0.00016628,2]
[408529204,1773837032510,-500.0,0.00016628,2]
[408529205,1773837032519,-500.0,0.00016628,2]
[408529206,1773837032528,-500.0,0.00016628,2]
[408529207,1773837032537,-500.0,0.00016628,2]
[408529208,1773837032546,-500.0,0.00016637,2]
[408529209,1773837032556,-500.0,0.00016637,2]
[408529210,1773837032565,-221.56191058,0.00016637,2]
[408529211,1773837032575,-500.0,0.00016638,2]
[408529212,1773837032584,-500.0,0.00016638,2]
[408529213,1773837032593,-500.0,0.00016638,2]
[408529214,1773837032602,-608.4344654,0.00016638,2]
[408529215,1773837032612,-500.0,0.00016638,2]
[408529216,1773837032621,-219.812892,0.00016638,2]
[408529217,1773837032630,-219.812892,0.00016638,2]
[408529218,1773837032640,-219.812892,0.00016638,2]
[408529219,1773837032648,-219.812892,0.00016638,2]
[408529220,1773837032658,-171.516107,0.00016638,2]
[408529221,1773837032667,-171.516107,0.00016638,2]
[408529222,1773837032677,-171.516107,0.00016638,2]
[408529223,1773837032686,-171.516107,0.00016638,2]
[408529224,1773837032696,-500.0,0.00016638,2]
[408529225,1773837032706,-2073.97640637,0.00016645,2]
[408529226,1773837032715,-979.16666667,0.00016663,2]
[408529227,1773837032724,-21876.47619253,0.00016696,2]
[408529228,1773837032734,-318.73,0.00016738,2]
[408529229,1773837032743,-200.0,0.00016738,2]
[408529230,1773837032752,-2073.97640637,0.00016802,2]
[408529231,1773837032763,-881.72056816,0.0001682,2]
[408529232,1773837032772,-923.0,0.00016839,2]
[408529233,1773837032781,-1214.0,0.00016839,2]
[408529234,1773837032790,-1344.0,0.00016839,2]
[408529235,1773837032800,-3512.0,0.00016839,2]
[408529236,1773837032809,-21876.47619253,0.00016846,2]
[408529237,1773837032818,-168.0,0.00016886,2]
[408529238,1773837032827,-1200.0,0.000169,6]
[408529239,1773837032836,-8741.4341,0.0001693,2]
[408529240,1773837032845,-1000.0,0.0001693,2]
[408529241,1773837032854,-235.0,0.00016945,2]
[408529242,1773837032864,-166.19,0.00016957,2]
[408529243,1773837032873,-2073.97640637,0.00016959,2]
[408529244,1773837032886,-21876.47619253,0.00016997,2]
[408529245,1773837032895,-168.0,0.00017002,2]
[408529246,1773837032905,-168.0,0.00017025,2]
[408529247,1773837032914,-443.07294302,0.00017029,2]
[408529248,1773837032924,-4533.4728,0.00017041,2]
[408529249,1773837032933,-500.0,0.00017077,2]
[408529250,1773837032943,-500.0,0.00017077,2]
[408529251,1773837032952,-500.0,0.00017077,2]
[408529252,1773837032961,-150.37503432,0.00017077,2]
[408529253,1773837032971,-500.0,0.00017077,2]
[408529254,1773837032979,-500.0,0.00017077,2]
[408529255,1773837032989,-550.79970363,0.00017077,2]
[408529256,1773837033001,-500.0,0.00017077,2]
[408529257,1773837033010,-500.0,0.00017077,2]
[408529258,1773837033019,-504.32218719,0.00017077,2]
[408529259,1773837033028,-500.0,0.00017077,2]
[408529260,1773837033039,-500.0,0.00017077,2]
[408529261,1773837033048,-434.47795526,0.00017077,2]
[408529262,1773837033057,-500.0,0.00017077,2]
[408529263,1773837033067,-500.0,0.00017077,2]
[408529264,1773837033078,-500.0,0.00017077,2]
[408529265,1773837033087,-500.0,0.00017077,2]
[408529266,1773837033096,-500.0,0.00017077,2]
[408529267,1773837033105,-570.0,0.00017077,2]
[408529268,1773837033115,-150.0,0.00017077,2]
[408529269,1773837033124,-500.0,0.00017077,2]
[408529270,1773837033133,-295.39810934,0.00017077,2]
[408529271,1773837033142,-500.0,0.00017077,2]
[408529272,1773837033152,-500.0,0.00017077,2]
[408529273,1773837033161,-500.0,0.00017077,2]
[408529274,1773837033170,-500.0,0.00017077,2]
[408529275,1773837033180,-500.0,0.00017077,2]
[408529276,1773837033191,-500.0,0.00017077,2]
[408529277,1773837033200,-500.0,0.00017077,2]
[408529278,1773837033209,-500.0,0.00017077,2]
[408529279,1773837033218,-622.75686492,0.00017077,2]
[408529280,1773837033227,-696.17,0.00017077,2]
[408529281,1773837033236,-151.0,0.00017077,2]
[408529282,1773837033247,-151.0,0.00017077,2]
[408529283,1773837033256,-151.0,0.00017077,2]
[408529284,1773837033265,-151.0,0.00017077,2]
[408529285,1773837033275,-150.0,0.00017077,2]
[408529286,1773837033285,-150.0,0.00017077,2]
[408529287,1773837033294,-150.0,0.00017077,2]
[408529288,1773837033303,-158.80130543,0.00017077,2]
[408529289,1773837033313,-500.0,0.00017077,2]
[408529290,1773837033322,-500.0,0.00017077,2]
[408529291,1773837033331,-500.0,0.00017077,2]
[408529292,1773837033340,-500.0,0.00017077,2]
[408529293,1773837033349,-500.0,0.00017077,2]
[408529294,1773837033359,-597.01723179,0.00017077,2]
[408529295,1773837033369,-150.0,0.00017077,2]
[408529296,1773837033378,-150.0,0.00017077,2]
[408529297,1773837033387,-219.812892,0.00017077,2]
[408529298,1773837033396,-219.812892,0.00017077,2]
[408529299,1773837033405,-219.812892,0.00017077,2]
[408529300,1773837033414,-219.812892,0.00017077,2]
[408529301,1773837033425,-171.516107,0.00017077,2]
[408529302,1773837033434,-171.516107,0.00017077,2]
[408529303,1773837033444,-171.516107,0.00017077,2]
[408529304,1773837033453,-171.516107,0.00017077,2]
[408529305,1773837033463,-407.51632774,0.000171,2]
[408529306,1773837033472,-168.0,0.00017112,2]
[408529307,1773837033481,-2073.97640637,0.00017116,2]
[408529308,1773837033490,-21876.47619253,0.00017147,2]
[408529309,1773837033501,-197.66378783,0.00017176,2]
[408529310,1773837033510,-1561.2259581,0.000172,2]
[408529311,1773837033520,-1336.8925829,0.0001723,2]
[408529312,1773837033529,-402.39638,0.0001723,2]
[408529313,1773837033538,-402.39639,0.0001723,2]
[408529314,1773837033547,-356.96,0.00017253,2]
[408529315,1773837033557,-200.0,0.00017261,2]
[408529316,1773837033567,-2073.97640637,0.00017272,2]
[408529317,1773837033577,-21876.47619253,0.00017298,2]
[408529318,1773837033587,-300.0,0.000173,2]
[408529319,1773837033596,-2400.0,0.000173,6]
[408529320,1773837033605,-168.0,0.00017302,2]
[408529321,1773837033614,-300.0,0.00017311,2]
[408529322,1773837033624,-168.0,0.00017315,2]
[408529323,1773837033633,-6518.0674357,0.00017345,2]
[408529324,1773837033642,-21100.8166659,0.00017345,2]
[408529325,1773837033654,-458.7662469,0.00017345,2]
[408529326,1773837033664,-782.63217109,0.00017345,2]
[408529327,1773837034024,-1254.41808677,0.00017345,2]
[408529328,1773837034036,-1563.90158174,0.00017345,2]
[408529329,1773837034046,-81.66272699,0.00017345,2]
[408529330,1773837034057,-3115.66801681,0.00017345,2]
[408529331,1773837034067,-35228.1818711,0.00017345,2]
[408529332,1773837034077,-151.0,0.00017345,2]
[408529333,1773837034088,-151.0,0.00017345,2]
[408529334,1773837034098,-151.0,0.00017345,2]
[408529335,1773837034107,-219.812892,0.00017345,2]
[408529336,1773837034117,-219.812892,0.00017345,2]
[408529337,1773837034127,-219.812892,0.00017345,2]
[408529338,1773837034136,-219.812892,0.00017345,2]
[408529339,1773837034146,-171.516107,0.00017345,2]
[408529340,1773837034155,-171.516107,0.00017345,2]
[408529341,1773837034165,-171.516107,0.00017345,2]
[408529342,1773837034174,-171.516107,0.00017345,2]
[408529343,1773837034184,-160.0,0.00017346,7]
[408529344,1773837034193,-164.102828,0.00017346,7]
[408529345,1773837034203,-168.205657,0.00017346,7]
[408529346,1773837034212,-300.0,0.00017351,2]
[408529347,1773837034221,-696.17,0.00017351,2]
[408529348,1773837034231,-700.0,0.0001736,4]
[408529349,1773837034240,-300.0,0.00017361,2]
[408529350,1773837034250,-300.0,0.00017399,2]
[408529351,1773837034259,-666.0,0.00017399,2]
[408529352,1773837034269,-310.24933161,0.00017399,2]
[408529353,1773837034279,-195.1043792,0.00017399,2]
[408529354,1773837034289,-352.24709881,0.00017399,2]
[408529355,1773837034298,-500.0,0.00017399,2]
[408529356,1773837034311,-336.6922928,0.00017399,2]
[408529357,1773837034320,-706761.70014173,0.000174,2]
[408529358,1773837034340,-1363.17503185,0.000174,2]
[408529361,1773837038010,-881.72056816,0.00017036,2]
[408529362,1773837038022,-810.12787033,0.000174,2]
[408529363,1773837038035,-622.31689605,0.000174,2]
[408529364,1773837038122,-5727.31711135,0.000174,2]
[408529365,1773837038133,-4172.34141883,0.000174,2]
[408529366,1773837038187,-293187.38063794,0.000174,2]
[408529367,1773837038242,-6543.9,0.000174,2]
[408529368,1773837038253,-585.46002988,0.000174,2]
[408529369,1773837038265,-956.1785563,0.000174,2]
[408529370,1773837038300,-847.0,0.000174,2]
[408529371,1773837038311,-290.6,0.000174,2]
[408529385,1773837038543,-6552.18,0.000174,2]
[408529387,1773837038554,-558.69299275,0.000174,2]
[408529390,1773837038576,-299.99,0.000174,2]
[408529490,1773837040534,-1056.56041401,0.000174,2]
[408529501,1773837043489,-269.44234566,0.00016839,2]
[408529502,1773837043546,-774.55765434,0.00016839,2]
[408529503,1773837043556,-886.39414652,0.00017052,2]
[408529504,1773837043567,-881.72056816,0.00017252,2]
[408529505,1773837043577,-9567.41979936,0.000174,2]
[408529512,1773837045948,-7268.69999999,0.000174,2]
[408529513,1773837045960,-7396.3,0.000174,2]
[408529514,1773837045972,-11636.40285672,0.000174,2]
[408529515,1773837045983,-1625.5298,0.000174,2]
[408529516,1773837046219,-8860.41667917,0.000174,2]
[408529517,1773837046386,-451.34,0.000174,2]
[408529520,1773837103872,-10000.01,7.945e-05,2]
[408529521,1773837104154,-2834.223394,7.945e-05,2]
[408529522,1773837283296,804.13,0.00030137,120]
[408529523,1773837344138,172.0,8.3e-07,2]
[408529534,1773838098828,1000.0,0.0003013,120]
[408529538,1773838232185,-271.0,0.00014664,2]
[408529539,1773838232195,-103.73643676,0.00014664,2]
[408529540,1773838232208,-1049.83120924,0.00014664,2]
[408529541,1773838232217,-466.5359,0.00014738,2]
[408529542,1773838232226,-723.63289076,0.00014769,2]
[408529543,1773838232238,-476.36710924,0.00014769,2]
[408529544,1773838232248,-643.0,0.00014944,2]
[408529545,1773838232258,-121.96388798,0.0001495,2]
[408529546,1773838232277,-378.03611202,0.0001495,2]
[408529547,1773838232286,-357.36052798,0.0001495,2]
[408529548,1773838232299,-142.63947202,0.0001495,2]
[408529549,1773838232309,-151.0,0.0001495,2]
[408529550,1773838232318,-43.12275998,0.0001495,2]
[408529551,1773838232330,-107.87724002,0.0001495,2]
[408529552,1773838232341,-151.0,0.0001495,2]
[408529553,1773838232351,-58.88775998,0.0001495,2]
[408529555,1773838232367,-141.11224002,0.0001495,2]
[408529557,1773838232376,-151.0,0.0001495,2]
[408529559,1773838232387,-63.18775998,0.0001495,2]
[408529560,1773838232398,-87.81224002,0.0001495,2]
[408529562,1773838232407,-151.0,0.0001495,2]
[408529563,1773838232419,-151.0,0.0001495,2]
[408529565,1773838232428,-142.96343998,0.0001495,2]
[408529567,1773838232443,-8.03656002,0.0001495,2]
[408529569,1773838232453,-151.0,0.0001495,2]
[408529571,1773838232463,-157.19981483,0.0001495,2]
[408529573,1773838232472,-250.0,0.00015,2]
[408529575,1773838232482,-166.66,0.00015059,2]
[408529576,1773838232491,-166.66,0.00015376,2]
[408529577,1773838232500,-166.66,0.00015693,2]
[408529578,1773838232510,-405.1,0.00015694,2]
[408529579,1773838232520,-1066.32,0.0001574,2]
[408529580,1773838232529,-864.89,0.00015852,2]
[408529581,1773838232540,-150.0,0.00015852,2]
[408529582,1773838232549,-2000.0,0.00015852,2]
[408529583,1773838232559,-2000.0,0.0001589,2]
[408529584,1773838232568,-166.66,0.0001601,2]
[408529585,1773838232578,-405.1,0.00016086,2]
[408529586,1773838232587,-550.64050903,0.00016131,2]
[408529587,1773838232597,-699.38092913,0.00016131,2]
[408529588,1773838232606,-166.81,0.00016165,2]
[408529589,1773838232616,-979.16666667,0.00016188,2]
[408529590,1773838232626,-1000.41,0.000162,3]
[408529591,1773838232635,-250.0,0.00016212,2]
[408529592,1773838232645,-573.42,0.00016216,2]
[408529593,1773838232654,-1000.0,0.000163,2]
[408529594,1773838232664,-166.66,0.00016327,2]
[408529595,1773838232673,-151.0,0.00016444,2]
[408529596,1773838232682,-250.0,0.00016444,2]
[408529597,1773838232692,-500.0,0.00016444,2]
[408529598,1773838232701,-250.0,0.00016444,2]
[408529599,1773838232711,-603.59784427,0.00016444,2]
[408529600,1773838232720,-277.82178945,0.00016444,2]
[408529601,1773838232733,-500.0,0.00016444,2]
[408529602,1773838232742,-500.0,0.00016444,2]
[408529603,1773838232751,-500.0,0.00016444,2]
[408529604,1773838232761,-187.81726343,0.00016444,2]
[408529605,1773838232770,-500.0,0.00016444,2]
[408529606,1773838232779,-500.0,0.00016444,2]
[408529607,1773838232788,-500.0,0.00016444,2]
[408529608,1773838232797,-500.0,0.00016444,2]
[408529609,1773838232806,-500.0,0.00016444,2]
[408529610,1773838232815,-500.0,0.00016444,2]
[408529611,1773838232825,-500.0,0.00016444,2]
[408529612,1773838232834,-500.0,0.00016444,2]
[408529613,1773838232843,-250.0,0.00016444,2]
[408529614,1773838232852,-245.99153825,0.00016444,2]
[408529615,1773838232861,-500.0,0.00016444,2]
[408529616,1773838232870,-250.0,0.00016444,2]
[408529617,1773838232880,-500.0,0.00016444,2]
[408529618,1773838232889,-250.0,0.00016444,2]
[408529619,1773838232898,-250.0,0.00016444,2]
[408529620,1773838232907,-500.0,0.00016444,2]
[408529621,1773838232916,-250.0,0.00016444,2]
[408529622,1773838232929,-500.0,0.00016444,2]
[408529623,1773838232939,-250.0,0.00016444,2]
[408529624,1773838232949,-500.0,0.00016444,2]
[408529625,1773838232960,-250.0,0.00016444,2]
[408529626,1773838232969,-250.0,0.00016444,2]
[408529627,1773838232979,-250.0,0.00016444,2]
[408529628,1773838232989,-250.0,0.00016444,2]
[408529629,1773838232998,-250.0,0.00016444,2]
[408529630,1773838233007,-250.0,0.00016444,2]
[408529631,1773838233016,-200.0,0.00016444,2]
[408529632,1773838233026,-250.0,0.00016444,2]
[408529633,1773838233035,-250.0,0.00016444,2]
[408529634,1773838233044,-500.0,0.00016444,2]
[408529635,1773838233054,-500.0,0.00016444,2]
[408529636,1773838233063,-500.0,0.00016444,2]
[408529637,1773838233073,-500.0,0.00016444,2]
[408529638,1773838233083,-500.0,0.00016444,2]
[408529639,1773838233092,-193.23307447,0.00016444,2]
[408529640,1773838233101,-500.0,0.00016444,2]
[408529641,1773838233110,-405.1,0.00016479,2]
[408529642,1773838233119,-500.0,0.00016481,2]
[408529643,1773838233131,-587.14175793,0.00016638,2]
[408529644,1773838233140,-500.0,0.00016638,2]
[408529645,1773838233149,-500.0,0.00016638,2]
[408529646,1773838233158,-500.0,0.00016638,2]
[408529647,1773838233168,-500.0,0.00016638,2]
[408529648,1773838233177,-500.0,0.00016638,2]
[408529649,1773838233186,-500.0,0.00016638,2]
[408529650,1773838233196,-500.0,0.00016638,2]
[408529651,1773838233205,-500.0,0.00016638,2]
[408529652,1773838233214,-500.0,0.00016638,2]
[408529653,1773838233223,-500.0,0.00016638,2]
[408529654,1773838233233,-500.0,0.00016638,2]
[408529655,1773838233242,-504.83287132,0.00016638,2]
[408529656,1773838233251,-500.0,0.00016638,2]
[408529657,1773838233260,-329.190207,0.00016638,2]
[408529658,1773838233270,-500.0,0.00016638,2]
[408529659,1773838233279,-500.0,0.00016638,2]
[408529660,1773838233288,-514.11832696,0.00016638,2]
[408529661,1773838233298,-500.0,0.00016638,2]
[408529662,1773838233307,-500.0,0.00016638,2]
[408529663,1773838233571,-156.89992437,0.00016638,2]
[408529664,1773838233581,-500.0,0.00016638,2]
[408529665,1773838233592,-816.73,0.00016638,2]
[408529666,1773838233601,-12762.1198,0.00016639,2]
[408529667,1773838233610,-166.66,0.00016644,2]
[408529668,1773838233626,-500.0,0.00016695,2]
[408529669,1773838233639,-162.82,0.00016711,2]
[408529670,1773838233650,-500.0,0.00016718,2]
[408529671,1773838233661,-89178.4548,0.00016739,2]
[408529672,1773838233670,-200.0,0.000168,2]
[408529673,1773838233680,-200.0,0.000168,2]
[408529674,1773838233690,-431.7,0.00016831,2]
[408529675,1773838233700,-405.1,0.00016871,2]
[408529676,1773838233709,-168.0,0.00016911,2]
[408529677,1773838233719,-816.73,0.00016912,2]
[408529678,1773838233729,-168.0,0.00016919,2]
[408529679,1773838233739,-1538.0,0.00016945,2]
[408529680,1773838233749,-168.0,0.00016959,2]
[408529681,1773838233759,-621.696,0.00016969,2]
[408529682,1773838233769,-1052.763,0.00016969,2]
[408529683,1773838233778,-1344.0,0.00016969,2]
[408529684,1773838233787,-474.83043161,0.00016969,2]
[408529689,1773838238206,-785.16956839,0.00016969,2]
[408529690,1773838238224,-150.0,0.00016969,2]
[408529691,1773838238234,-414.0,0.00016969,2]
[408529692,1773838238244,-6005.0,0.00016969,2]
[408529693,1773838238254,-168.0,0.00017001,2]
[408529694,1773838238264,-573.42,0.00017027,2]
[408529695,1773838238273,-168.0,0.00017034,2]
[408529696,1773838238282,-168.0,0.00017044,2]
[408529697,1773838238292,-166.81,0.00017054,2]
[408529698,1773838238301,-150.0,0.00017077,2]
[408529699,1773838238310,-150.0,0.00017077,2]
[408529700,1773838238319,-150.0,0.00017077,2]
[408529701,1773838238329,-150.0,0.00017077,2]
[408529702,1773838238340,-150.0,0.00017077,2]
[408529703,1773838238351,-214.0,0.00017077,2]
[408529704,1773838238361,-150.0,0.00017077,2]
[408529705,1773838238370,-150.0,0.00017077,2]
[408529706,1773838238379,-150.0,0.00017077,2]
[408529707,1773838238389,-150.0,0.00017077,2]
[408529708,1773838238398,-150.0,0.00017077,2]
[408529709,1773838238407,-250.0,0.00017077,2]
[408529710,1773838238416,-168.0,0.00017085,2]
[408529711,1773838238427,-651.33076116,0.000171,6]
[408529712,1773838238438,-348.66923884,0.000171,6]
[408529714,1773838238447,-252.961988,0.00017157,7]
[408529716,1773838238457,-217.650203,0.00017157,7]
[408529717,1773838238469,-185.203259,0.0001716,7]
[408529718,1773838238479,-259.566936,0.0001716,7]
[408529719,1773838238488,-816.73,0.00017186,2]
[408529720,1773838238497,-1681.1122,0.00017188,2]
[408529721,1773838238506,-2500.0,0.0001719,2]
[408529722,1773838238515,-12764.2305479,0.00017192,2]
[408529723,1773838238524,-935.29835195,0.00017195,2]
[408529724,1773838238534,-2100.0,0.000172,6]
[408529725,1773838238543,-807.30412,0.0001723,2]
[408529726,1773838238552,-807.30412,0.0001723,2]
[408529728,1773838238562,-270.160297,0.00017234,7]
[408529730,1773838238571,-160.0,0.00017234,7]
[408529732,1773838238580,-274.658434,0.00017234,7]
[408529733,1773838238589,-389.316868,0.00017234,7]
[408529734,1773838238598,-405.1,0.00017263,2]
[408529735,1773838238607,-12764.23054786,0.00017271,2]
[408529736,1773838238616,-155.6385228,0.00017287,2]
[408529737,1773838238625,-4766.6980475,0.00017288,2]
[408529738,1773838238634,-1481.0800577,0.00017288,2]
[408529739,1773838238644,-7961.8691769,0.00017288,2]
[408529740,1773838238654,-500.0,0.00017289,2]
[408529741,1773838238663,-500.0,0.00017289,2]
[408529742,1773838238671,-500.0,0.00017289,2]
[408529743,1773838238681,-500.0,0.00017289,2]
[408529744,1773838238690,-500.0,0.00017289,2]
[408529745,1773838238699,-500.0,0.00017289,2]
[408529746,1773838238708,-500.0,0.00017289,2]
[408529747,1773838238720,-500.0,0.00017289,2]
[408529748,1773838238730,-500.0,0.00017289,2]
[408529749,1773838238739,-500.0,0.00017289,2]
[408529750,1773838238748,-331.04137831,0.00017289,2]
[408529751,1773838238757,-500.0,0.00017289,2]
[408529752,1773838238767,-500.0,0.00017289,2]
[408529753,1773838238776,-500.0,0.00017289,2]
[408529754,1773838238785,-500.0,0.00017289,2]
[408529755,1773838238794,-500.0,0.00017289,2]
[408529756,1773838238803,-362754.2449,0.0001729,2]
[408529757,1773838238812,-935.29835188,0.00017296,2]
[408529758,1773838238821,-2338.0,0.000173,2]
[408529759,1773838238830,-3200.0,0.000173,6]
[408529760,1773838238839,-160.0,0.00017313,7]
[408529761,1773838238848,-284.295572,0.00017313,7]
[408529762,1773838238857,-408.591144,0.00017313,7]
[408529763,1773838238866,-307.858458,0.00017317,7]
[408529764,1773838238875,-1000.0,0.0001733,2]
[408529765,1773838238885,-1000.0,0.0001733,2]
[408529766,1773838238894,-1000.0,0.0001733,2]
[408529767,1773838238903,-350.798,0.0001733,2]
[408529768,1773838238912,-12764.23054786,0.00017349,2]
[408529769,1773838238920,-2482.018,0.0001736,2]
[408529770,1773838238929,-172.649,0.0001736,2]
[408529771,1773838238938,-299.99,0.00017361,2]
[408529772,1773838238947,-400.0,0.0001737,2]
[408529773,1773838238956,-702.84278182,0.0001737,2]
[408529774,1773838238968,-935.29835188,0.00017396,2]
[408529775,1773838238977,-31354.6484301,0.00017399,2]
[408529776,1773838238987,-500.0,0.00017399,2]
[408529777,1773838238996,-381.20270533,0.00017399,2]
[408529778,1773838239006,-362.98362465,0.00017399,2]
[408529779,1773838239016,-500.0,0.00017399,2]
[408529780,1773838239025,-246.57296916,0.00017399,2]
[408529781,1773838239034,-585.68460496,0.00017399,2]
[408529782,1773838239043,-1192433.26656055,0.000174,2]
[408529783,1773838239056,-363.98,0.000174,2]
[408529784,1773838239066,-279.745,0.000174,2]
[408529785,1773838239077,-3284.59443519,0.000174,2]
[408529786,1773838239096,-450.36570944,0.000174,2]
[408529787,1773838239117,-4774.092864,0.000174,2]
[408529788,1773838239128,-2427.57757464,0.000174,2]
[408529789,1773838239139,-362.505,0.000174,2]
[408529790,1773838239163,-372.00002152,0.000174,2]
[408529791,1773838239174,-256.000184,0.000174,2]
[408529792,1773838239185,-340.3999997,0.000174,2]
[408529793,1773838239195,-550.19999,0.000174,2]
[408529794,1773838239207,-5322.40675204,0.000174,2]
[408529795,1773838239221,-13861.20775467,0.000174,2]
[408529796,1773838239232,-19328.86948804,0.000174,2]
[408529797,1773838239243,-3480.22261308,0.000174,2]
[408529798,1773838239254,-4276.34530784,0.000174,2]
[408529799,1773838239264,-7444.62405755,0.000174,2]
[408529800,1773838239275,-2554.8342286,0.000174,2]
[408529801,1773838239287,-6195.01484207,0.000174,2]
[408529802,1773838239301,-235669.47892566,0.000174,2]
[408529803,1773838239313,-5920.91778468,0.000174,2]
[408529804,1773838239325,-36275.0,0.000174,2]
[408529807,1773838240616,-1445.93143005,0.00016969,2]
[408529808,1773838240628,-768.71294345,0.00016969,2]
[408529809,1773838240674,-250.3556265,0.00016969,2]
[408529810,1773838240685,-21423.85479552,0.000174,2]
[408529811,1773838240696,-396.43241771,0.000174,2]
[408529812,1773838240951,-1117.08,0.000174,2]
[408529813,1773838240966,-34948.70510849,0.000174,2]
[408529823,1773838246123,-914.0,0.00014564,2]
[408529825,1773838246179,-387.93218086,0.00014564,2]
[408529827,1773838246190,-1920.69987302,0.00014564,2]
[408529829,1773838246202,-4088.80838468,0.00014564,2]
[408529831,1773838246212,-24885.19861204,0.000174,2]
[408529832,1773838246224,-4482.20000004,0.000174,2]
[408529834,1773838246235,-2925.3316,0.000174,2]
[408529835,1773838246288,-725.0,0.000174,2]
[408529836,1773838246299,-1027.23724345,0.000174,2]
[408529837,1773838246350,-216901.46474957,0.000174,2]
[408529838,1773838246360,-258.49,0.000174,7]
[408529839,1773838246370,-1000.0,0.000174,2]
[408529840,1773838246379,-1000.0,0.000174,2]
[408529841,1773838246390,-1000.0,0.000174,2]
[408529842,1773838246399,-1000.0,0.000174,2]
[408529843,1773838246408,-1000.0,0.000174,2]
[408529844,1773838246418,-1000.0,0.000174,2]
[408529845,1773838246429,-1000.0,0.000174,2]
[408529846,1773838246438,-1000.0,0.000174,2]
[408529847,1773838246448,-1000.0,0.000174,2]
[408529848,1773838246457,-1000.0,0.000174,2]
[408529853,1773838246676,-1000.0,0.000174,2]
[408529854,1773838246685,-1000.0,0.000174,2]
[408529855,1773838246695,-1000.0,0.000174,2]
[408529856,1773838246705,-1000.0,0.000174,2]
[408529857,1773838246714,-1000.0,0.000174,2]
[408529858,1773838246725,-1000.0,0.000174,2]
[408529859,1773838246735,-1000.0,0.000174,2]
[408529860,1773838246744,-1000.0,0.000174,2]
[408529862,1773838246754,-1000.0,0.000174,2]
[408529864,1773838246763,-1000.0,0.000174,2]
[408529866,1773838246773,-1000.0,0.000174,2]
[408529867,1773838246782,-1000.0,0.000174,2]
[408529868,1773838246792,-1000.0,0.000174,2]
[408529869,1773838246801,-1000.0,0.000174,2]
[408529871,1773838246810,-1000.0,0.000174,2]
[408529872,1773838246820,-1000.0,0.000174,2]
[408529873,1773838246829,-320.56801148,0.000174,2]
[408529874,1773838246839,-160.98,0.000174,2]
[408529875,1773838246849,-160.0,0.000174,2]
[408529876,1773838246859,-300.0,0.000174,2]
[408529877,1773838246868,-151.0,0.000174,2]
[408529878,1773838246877,-1240.99124724,0.000174,2]
[408529879,1773838246886,-152.72588312,0.000174,2]
[408529880,1773838246896,-2000.0,0.000174,2]
[408529881,1773838246905,-807.30412,0.000174,2]
[408529882,1773838246915,-807.30412,0.000174,2]
[408529883,1773838246925,-807.30412,0.000174,2]
[408529884,1773838246934,-807.30413,0.000174,2]
[408529885,1773838246943,-4200.0,0.000174,6]
[408529886,1773838246953,-12764.23054786,0.00017428,2]
[408529887,1773838246963,-168.0,0.00017455,2]
[408529888,1773838246973,-816.73,0.0001746,2]